Cogmind - Beta 10 @@@ ROGUE MODE // 2020.09.16 @ 17:41:29 Player: IAMCRAIG Result: Destroyed by S-10 Pest with Light Assault Rifle Performance ------------- Evolutions (0) 0 Regions Visited (2) 400 Robots Destroyed (24) 120 Value Destroyed (278) 278 Prototype IDs (0) 0 Alien Tech Used (0) 0 Bonus (0) 0 TOTAL SCORE: 798 Bonus ------- None Cogmind --------- Core Integrity 0/250 Matter 300/300 Energy 125/125 System Corruption 0% Temperature Cool (6) Movement Rolling (100) Ox2 Location -10/Mines Parts ------- > --- POWER (1) -------- Light Ion Engine > --- PROPULSION (2) --- Light Treads Wheel > --- UTILITY (2) ------ Large Storage Unit > --- WEAPON (2) ------- Hammer > --- INVENTORY (10) --- Light Ion Engine Light Treads Light Treads Wheel Improved Heat Sink Medium Storage Unit High-capacity Storage Unit ECM Suite Core Shielding Weapon Shielding Peak State ------------ > --- POWER ------------ Ion Engine > --- PROPULSION ------- Aluminum Leg Aluminum Leg > --- UTILITY ---------- Improved Heat Sink Medium Storage Unit > --- WEAPON ----------- EM Pulse Gun Grenade Launcher > --- INVENTORY -------- Light Ion Engine Light Treads Light Treads Compact Wheel High-capacity Storage Unit Core Shielding Light Assault Rifle [Rating: 9] Favorites ----------- Power Ion Engine Engine Ion Engine Propulsion Aluminum Leg Treads Light Treads Leg Aluminum Leg Wheel Wheel Utility Small Storage Unit Device Improved Heat Sink Storage Small Storage Unit Protection Light Armor Plating Weapon EM Pulse Gun Energy Gun EM Pulse Gun Ballistic Gun Light Assault Rifle Launcher Grenade Launcher Impact Weapon Hammer Build | -11 -10 -10 ------- Run | Scr Mat Min Slots Evolved . | . . . Power . | . . . Propulsion . | . . . Utility . | . . . Weapon . | . . . Parts Attached 29 | 7 12 10 Power 3 | 1 1 1 Engine 3 | 1 1 1 Core . | . . . Reactor . | . . . Propulsion 8 | 2 1 5 Treads 2 | . . 2 Leg 3 | 2 1 . Wheel 3 | . . 3 Hover . | . . . Flight . | . . . Utility 11 | 2 7 2 Device 1 | . 1 . Storage 8 | 2 5 1 Processor . | . . . Hackware . | . . . Protection 2 | . 1 1 Artifact . | . . . Weapon 7 | 2 3 2 Energy Gun 2 | 1 1 . Energy Cannon . | . . . Ballistic Gun 2 | 1 . 1 Ballistic Cannon . | . . . Launcher 2 | . 2 . Special Weapon . | . . . Impact Weapon 1 | . . 1 Slashing Weapon . | . . . Piercing Weapon . | . . . Special Melee Weapon . | . . . Unidentified Prototypes . | . . . Parts Lost 7 | . . 7 Power 1 | . . 1 Propulsion 2 | . . 2 Utility 1 | . . 1 Weapon 3 | . . 3 Highest Loss Streak 3 | . . 3 Average Slot Usage (%) 92 | . 99 87 Engine 14 | . 14 14 Treads 7 | . . 12 Leg 13 | . 28 4 Wheel 6 | . . 10 Storage 18 | . 25 14 Protection 8 | . 1 13 Energy Gun 6 | . 14 1 Ballistic Gun 2 | . . 3 Launcher 6 | . 13 1 Impact Weapon 6 | . . 10 Naked Turns . | . . . Heaviest Build 30 | 16 30 24 Greatest Support 40 | 20 20 40 Greatest Overweight (x) 2 | 1 1 2 Average Overweight (x) . | . . 1 Largest Inventory Capacity 14 | 8 14 10 Average Capacity 8 | 6 8 8 Most Carried 10 | 7 9 10 Average Carried 7 | 4 7 8 Final Capacity 10 | 8 8 10 Final Carried 10 | 7 8 10 Class Distribution -------------------- 100% | Mutant Dominant Class ---------------- Mutant | -10/Materials Mutant | -10/Mines Resources | -11 -10 -10 ----------- Run | Scr Mat Min Matter Collected 578 | 270 63 245 Remotely . | . . . Salvage Created 396 | 73 108 215 Parts 26 | 2 11 13 Haulers Intercepted . | . . . Recyclers Shooed . | . . . Parts Field Recycled . | . . . Retrieved Matter . | . . . Parts Self-Destructed . | . . . Prevented . | . . . Kills | -11 -10 -10 ------- Run | Scr Mat Min Combat Hostiles Destroyed 18 | . 5 13 Melee 3 | . . 3 Guns 4 | . 2 2 AOE 10 | . 3 7 Classes Destroyed 8 | 1 4 3 Worker 2 | . 1 1 Builder 1 | . . 1 Recycler 1 | 1 . . Watcher 2 | . 2 . Swarmer 5 | . 3 2 Grunt 3 | . 2 1 Sentry 1 | . . 1 Assembled 9 | . . 9 Best Kill Streak 7 | 1 6 7 Combat Bots Only 7 | . 5 7 Max Kills in Single Turn 3 | 1 2 3 Gunslinging . | . . . Exploded 3 | . 1 3 Melee 1 | . . 1 Uniques/NPCs Destroyed . | . . . Combat | -11 -10 -10 -------- Run | Scr Mat Min Damage Taken 1073 | . 249 824 Core 251 | . 73 178 Absorbed by Shields . | . . . Core Remaining (%) 100 | 100 . . Volleys Fired 58 | 5 20 33 Largest 1 | 1 1 1 Hottest 40 | 40 40 30 Shots Fired 58 | 5 20 33 Gun 49 | 5 16 28 Cannon . | . . . Launcher 9 | . 4 5 Special . | . . . Kinetic 28 | . . 28 Thermal . | . . . Explosive 9 | . 4 5 Electromagnetic 21 | 5 16 . Robot Hit Streak 7 | 5 7 7 Robot Miss Streak 2 | . 2 2 Penetration Max . | . . . Secondary Targets . | . . . Shots Hit Robots 48 | 5 11 32 Core Hits 48 | 2 15 31 Critical Hits . | . . . Critical Kills . | . . . Critical Parts Destroyed . | . . . Melee Attacks 20 | . . 20 Impact 20 | . . 20 Slashing . | . . . Piercing . | . . . Sneak Attacks 2 | . . 2 Combat Hostiles . | . . . Follow-up Attacks . | . . . Damage Inflicted 1333 | 63 475 795 Guns 353 | 63 134 156 Cannons . | . . . Explosions 720 | . 341 379 Melee 260 | . . 260 Ramming . | . . . Kinetic 156 | . . 156 Thermal . | . . . Explosive 720 | . 341 379 Electromagnetic 197 | 63 134 . Impact 260 | . . 260 Slashing . | . . . Piercing . | . . . Highest Corruption . | . . . Average Corruption . | . . . Corruption Purged . | . . . Overload Shots . | . . . Overflow Damage 44 | . . 44 Projectiles . | . . . Explosions 43 | . . 43 Melee 1 | . . 1 Knockbacks 2 | . . 2 Impact 2 | . . 2 Kinetic . | . . . Secondary . | . . . Self-Inflicted Damage 44 | . 12 32 Shots 2 | . 1 1 Rammed . | . . . Targets Rammed . | . . . Kicked . | . . . Crushed . | . . . Highest Temperature 84 | . 84 9 Average Temperature 30 | . 43 4 Received Heat Transfer 231 | . 129 102 Siege Activations . | . . . Robots Corrupted . | . . . Combat Hostiles . | . . . Parts Fried 1 | . . 1 Impact Corruptions 1 | . . 1 Robots Melted . | . . . Combat Hostiles . | . . . Parts Melted . | . . . Heat Transferred . | . . . Parts Sabotaged . | . . . Parts Stolen . | . . . Parts Stripped . | . . . Power Chain Reactions . | . . . Missiles Intercepted . | . . . Alert | -11 -10 -10 ------- Run | Scr Mat Min Peak Influence 186 | 5 186 80 Initial 72 | . 3 72 Average 61 | 1 111 41 Maximum Alert Level . | . . . Low Security (%) 100 | 100 100 100 Level 1 . | . . . Level 2 . | . . . Level 3 . | . . . Level 4 . | . . . Level 5 . | . . . High Security . | . . . Max Security . | . . . Squads Dispatched 1 | . 1 . Investigation . | . . . Extermination . | . . . Reinforcement 1 | . 1 . Assault . | . . . Garrison . | . . . Intercept . | . . . Construction Impeded . | . . . Haulers Reinforced . | . . . Stealth | -11 -10 -10 --------- Run | Scr Mat Min Distress Signals . | . . . Communications Jammed . | . . . Distress Signals . | . . . Times Spotted 22 | . 6 16 Peak Tracking Total 6 | . 5 6 Tactical Retreats 1 | . . 1 Traps | -11 -10 -10 ------- Run | Scr Mat Min Traps Triggered 1 | . 1 . Indirectly . | . . . Trap Hack Attempts . | . . . Triggered . | . . . Disarmed . | . . . Reprogrammed . | . . . Reused . | . . . Traps Extracted . | . . . Installed . | . . . Triggered . | . . . Machines | -11 -10 -10 ---------- Run | Scr Mat Min Machines Disabled 2 | . 1 1 Max in Single Turn 1 | . 1 1 Machines Sabotaged . | . . . Garrisons Compromised . | . . . Overloaded Fab Kills . | . . . Fab Network Shutdowns . | . . . Hacking | -11 -10 -10 --------- Run | Scr Mat Min Machines Accessed 2 | . 2 . Terminals 2 | . 2 . Fabricators . | . . . Repair Stations . | . . . Recycling Units . | . . . Scanalyzers . | . . . Garrison Access . | . . . Total Hacks 6 | . 6 . Successful 3 | . 3 . Failed 3 | . 3 . Catastrophic . | . . . Database Lockouts . | . . . Manual 3 | . 3 . Terminals 6 | . 6 . Fabricators . | . . . Repair Stations . | . . . Recycling Units . | . . . Scanalyzers . | . . . Garrison Access . | . . . Terminal Hacks 1 | . 1 . Locate Traps 1 | . 1 . Fabricator Hacks . | . . . Repair Station Hacks . | . . . Recycling Unit Hacks . | . . . Scanalyzer . | . . . Garrison Access Hacks . | . . . Unauthorized Hacks 2 | . 2 . Terminals 2 | . 2 . Botnet 2 | . 2 . Fabricators . | . . . Repair Stations . | . . . Recycling Units . | . . . Scanalyzers . | . . . Garrison Access . | . . . Data Cores Recovered . | . . . Used . | . . . Hacking Detections 2 | . 2 . Full Trace Events . | . . . Feedback Events . | . . . Feedback Blocked . | . . . Robot Schematics Acquired . | . . . Robots Built . | . . . Matter . | . . . Time . | . . . Total Robot Build Rating . | . . . Part Schematics Acquired . | . . . Parts Built . | . . . Matter . | . . . Time . | . . . Total Part Build Rating . | . . . Parts Repaired . | . . . Time . | . . . Parts Recycled . | . . . Recycled Matter . | . . . Retrieved Matter . | . . . Retrieved Components . | . . . Parts Scanalyzed . | . . . Part Schematics Acquired . | . . . Parts Damaged . | . . . Bothacking | -11 -10 -10 ------------ Run | Scr Mat Min Used RIF Installer . | . . . Robots Hacked . | . . . Non-combat . | . . . Combat . | . . . Robot Hacks Applied . | . . . Relay Couplers Released . | . . . Robots Rewired . | . . . Allies Hacked . | . . . Hacks Repelled . | . . . Allies | -11 -10 -10 -------- Run | Scr Mat Min Total Allies . | . . . Largest Group . | . . . Highest-Rated Group . | . . . Highest-Rated Ally . | . . . Total Orders . | . . . Ally Attacks . | . . . Total Damage . | . . . Kills . | . . . Allies Corrupted . | . . . Allies Melted . | . . . Intel | -11 -10 -10 ------- Run | Scr Mat Min Robot Analysis Total . | . . . Derelict Logs Recovered 1 | . . 1 Drone Launches . | . . . Drone Recoveries . | . . . Exploration | -11 -10 -10 ------------- Run | Scr Mat Min Turns Passed 939 | 114 331 494 Spaces Moved 651 | 73 221 357 Core 9 | 9 . . Treads 5 | . . 5 Legs 321 | 64 221 36 Wheels 316 | . . 316 Hover . | . . . Flight . | . . . Fastest Speed 50 | 50 120 90 Average Speed 108 | 115 120 99 Slowest Speed 160 | 120 150 160 Overloaded Moves . | . . . Propulsion Burnouts . | . . . Robots Hopped . | . . . Cave-ins Triggered . | . . . Exploration Rate (%) 40 | 5 38 77 Regions Visited 2 Branch Regions 1 Pre-discovered Areas . | . . . Known Exits Taken . | . . . Unknown Exits Taken 2 | 1 1 . Scrap Searched 2 | . . 2 Spaces Dug 2 | . . 2 Terrain Destroyed 36 | . 16 20 Melee 2 | . . 2 Projectile . | . . . AOE 34 | . 16 18 Terrain Rammed . | . . . Walls Destroyed . | . . . Machines Disabled . | . . . Actions | -11 -10 -10 --------- Run | Scr Mat Min Total 803 | 94 269 440 Wait 7 | 1 1 5 Move 649 | 72 220 357 Hop . | . . . Pick Up 22 | 8 4 10 Fast Attach 14 | 7 6 1 Attach 5 | . 1 4 Detach 3 | . 3 . Swap 10 | . 5 5 Drop 15 | 1 9 5 Fire 58 | 5 20 33 Melee 20 | . . 20 Ram . | . . . Kick . | . . . Crush . | . . . Escape Stasis . | . . . Rewire . | . . . Trap . | . . . Miscellaneous . | . . . Route ------- -11/Scrapyard -10/Materials (discovered 2 exits: [*Mat] / [*Min]) -10/Mines (discovered 3 exits: [*Mat x2] / [*Exi]) History --------- Turn | Location | Event 10 | -11/Scrapyard | Discovered new exit (range 15) 115 | -11/Scrapyard | Entered Materials 226 | -10/Materials | Discovered new exit (range 11) 332 | -10/Materials | Build established: Mutant 425 | -10/Materials | Discovered new exit (range 9) 446 | -10/Materials | Entered Mines 476 | -10/Mines | Assembled infested the area 514 | -10/Mines | Destroyed 7 combat bots 525 | -10/Mines | Core integrity fell below 50% 549 | -10/Mines | Lost 3 parts (1n2w) 610 | -10/Mines | Core integrity fell below 20% 658 | -10/Mines | Lost 3 parts (1p1n1w) 663 | -10/Mines | Learned location of 1 exit from Materials 774 | -10/Mines | Discovered new exit (range 11) 786 | -10/Mines | Deemed a non-threat by the Exiles lab entrance 787 | -10/Mines | Discovered new exit (range 5) 824 | -10/Mines | Discovered new exit (range 9) 940 | -10/Mines | Destroyed by S-10 Pest with Light Assault Rifle Last Messages --------------- 00767_ Acquired Wheel. 00773_ Acquired Lgt. Ion Engine. 00774_ EXIT=FOUND 00786_ "No threat detected, you may enter." 00787_ EXIT=FOUND 00812_ Searching scrap... 00812_ Found ECM Suite. 00812_ Found 12 Matter. 00813_ Acquired 10 matter. 00816_ Acquired ECM Suite. 00824_ EXIT=FOUND 00867_ K-01 Serf collects debris. 00906_ Destroyed Flight Unit. 00906_ S-10 Pest system corrupted by crushing effect. 00907_ S-10 Pest system terminally corrupted. 00907_ Lgt. Assault Rifle fried. 00913_ S-10 Pest destroyed. 00924_ G-47 Trooper destroyed. 00929_ Lgt. Armor Plating destroyed. 00929_ G-34 Mercenary knocked back. Map ----- +----------------------------------------------------+ | ?????????????????????????????????????????????????? | | ?????????????????????????????????????????????????? | | ?????????????????????????????????????????????????? | | ?????????????????????????????????????????????????? | | ?????????????????????????????????????????????????? | | ?????????????????????????????????????????????????? | | ?????????????????????????????????????????????????? | | ?????????????????????????????????????????????????? | | ?????????????????????????????????????????????????? | | ?????????????????????????????????????????????????? | | ?????????????????????????????????????????????????? | | ?????????????????????????????????????????????????? | | ?????????????????????????????????###?????????????? | | ???????????????????????????##""## ###???????????? | | ??????????????????????????# X #???????????? | | ?????????????????????????# #???????????# | | ????????????????????????? #???????????# | | ???????? #?????????????? #??????????### | | ???????? #??????????????# #?????????## | | ???????? ??????????????## #???####### | | ???????? ?#???????????##k #???# | | ?????### ##?????????## #????# ##### | | ????## ########### #??????# #???## | | ????# = ! #??###### #????## | | ????#< ######## g ###??# #?????## | | ?????# #????????## ###@ ######## ### ##??????# | | ??#### #?????????## #?#=###??# #?# #???????# | | ### ## #?????????# ###*#????#%#####?# #???????# | | #?????????# # #%## #?#%#?????# #???????# | | != #????????### ###s###### #?????# #???????# | | ####????## # % %= #?????# #???????# | | ##???# # ############?????# #???????# | | =# #???# # !# #??????????# #???????# | | # ##??# ##! ## ##????####??# #???????# | | #??## ## !# ##????## #### #???????# | | ##### ## ###???### #???????? | | # ## #???## #####???????? | | # # ##???# #???????????? | | ## # #????# ##???????????? | | ########### #????## ##????????????? | | ##?????????## ### ####?????## ##?????????????? | | #???????????## ##?# #????????## ##?????????????? | | #????????????####??# #???????## ##????????????? | | ???????????????????#!#???????# #????????????? | | ???????????????????#%##??????# ##???????????? | | ??????????????????##%=##?????## ###??????#### | | ??????????????????# #??????## ##????## | | ###?????????####?## #???????## #?#### | | ##???????## ### #????????# #?# | | #????#### ## #???????## #??# ## | +----------------------------------------------------+ Best States ------------- Heat Dissipation 25 Energy Generation 10 Energy Capacity 250 Matter Stores 300 Matter Capacity 300 Sight Range 16 Terrain Scan Density 10 Armor Coverage 150 Core Shielding 20 Evasion (%) 42 Recoil Reduction 2 Item Schematics ----------------- None Robot Schematics ------------------ None Fabricated ------------ Nothing Alien Tech Used ----------------- None Achievements -------------- None Challenges ------------ None Game ------ Seed MetafieldModifiedCore Manual? 0 Play Time 00:16:59 Cumulative 196.8 hours Start 2020.09.16 @ 17:28:11 End 2020.09.16 @ 17:41:29 Sessions 1 Manual Loads 0 Difficulty Rogue Special Mode None Game No. 72 Rogue 72 Adventurer 0 Explorer 0 Win Type - Total 2 Types 1/0/1/0/0/0/0/0/0 Lore% 65 Gallery% 76 Achievement% 67 Wizard Run 0 Options --------- ASCII 1 Keyboard 1 Movement Numpad Keybinds 0 Fullscreen 1 Font 16/SmallcapsGlow Map View 75x55 Tactical HUD 1 Map Filters NONE Filters NONE Steam 1 RUN: 564e82c1-71c8-4d1c-9852-14fa21384b66